bitfinex-derivatives/quotes_BTCF0:USTF0_20260221
["timestamp","ask_amount","ask_price","bid_price","bid_amount"]
[1771709617490,0.014626,68388.0,68383.0,0.014627]
[1771709617881,0.014626,68391.0,68383.0,0.014627]
[1771709618087,0.014626,68390.0,68386.0,0.014627]
[1771709618391,0.014626,68390.0,68385.0,0.014627]
[1771709618593,0.014626,68389.0,68383.0,0.029254]
[1771709619390,0.014626,68388.0,68383.0,0.014627]
[1771709620296,0.014627,68387.0,68382.0,0.014628]
[1771709620486,0.014627,68387.0,68383.0,0.014627]
[1771709621593,0.014627,68387.0,68383.0,0.015627]
[1771709621798,0.014626,68388.0,68383.0,0.015627]
[1771709622000,0.014626,68388.0,68383.0,0.030254]
[1771709622385,0.014626,68388.0,68383.0,0.015627]
[1771709622989,0.014626,68388.0,68384.0,0.014627]
[1771709629899,0.01943337,68410.0,68387.0,0.014626]
[1771709630118,0.029252,68392.0,68387.0,0.014626]
[1771709630312,0.014624,68399.0,68389.0,0.014626]
[1771709630616,0.014625,68395.0,68390.0,0.014626]
[1771709631008,0.014625,68394.0,68390.0,0.014626]
[1771709633117,0.014625,68395.0,68390.0,0.014626]
[1771709633319,0.02925,68395.0,68390.0,0.014626]
[1771709633514,0.014625,68395.0,68390.0,0.014626]
[1771709633719,0.014625,68394.0,68390.0,0.014626]
[1771709634417,0.014625,68394.0,68389.0,0.014626]
[1771709636122,0.014625,68393.0,68388.0,0.014626]
[1771709637519,0.014627,68388.0,68383.0,0.014627]
[1771709637726,0.014627,68387.0,68383.0,0.014627]
[1771709644227,0.014626,68388.0,68383.0,0.014627]
[1771709644433,0.014626,68389.0,68384.0,0.014627]
[1771709644731,0.014626,68388.0,68384.0,0.014627]
[1771709645327,0.014626,68391.0,68381.0,0.0007312]
[1771709645528,0.014626,68391.0,68386.0,0.014627]
[1771709646525,0.029252,68391.0,68386.0,0.014627]
[1771709647638,0.014626,68390.0,68385.0,0.014627]
[1771709650431,0.014626,68388.0,68383.0,0.014627]
[1771709650728,0.014626,68389.0,68383.0,0.014627]
[1771709651024,0.014626,68388.0,68383.0,0.014627]
[1771709651325,0.014626,68391.0,68386.0,0.014627]
[1771709653325,0.014625,68396.0,68390.0,0.014626]
[1771709653522,0.23399896,68395.0,68389.0,0.014626]
[1771709653723,0.23399896,68394.0,68389.0,0.014626]
[1771709653929,0.014625,68396.0,68389.0,0.014626]
[1771709654127,0.014625,68394.0,68389.0,0.014626]
[1771709654817,0.02925,68394.0,68389.0,0.014626]
[1771709655225,0.014625,68394.0,68389.0,0.014626]
[1771709658631,0.02925,68394.0,68389.0,0.014626]
[1771709658829,0.014625,68393.0,68388.0,0.014626]
[1771709659025,0.014625,68395.0,68384.0,0.014627]
[1771709659224,0.014626,68391.0,68386.0,0.014627]
[1771709660230,0.029252,68391.0,68386.0,0.014627]
[1771709663027,0.014626,68390.0,68386.0,0.014627]
[1771709668941,0.014626,68390.0,68385.0,0.014627]
[1771709674042,0.014626,68389.0,68385.0,0.014627]
[1771709675444,0.014627,68386.0,68381.0,0.0153592]
[1771709676144,0.014627,68387.0,68382.0,0.014628]
[1771709676345,0.014627,68387.0,68381.0,0.0153592]
[1771709676346,0.014626,68390.0,68384.0,0.014627]
[1771709676546,0.014626,68392.0,68384.0,0.014627]
[1771709676745,0.014626,68390.0,68384.0,0.014627]
[1771709677140,0.014626,68389.0,68384.0,0.014627]
[1771709685148,0.014625,68394.0,68381.0,0.0007312]
[1771709685353,0.014626,68388.0,68383.0,0.014627]
[1771709685955,0.014626,68388.0,68384.0,0.014627]
[1771709687056,0.014626,68388.0,68383.0,0.014627]
[1771709687754,0.014626,68388.0,68383.0,0.029254]
[1771709688454,0.014626,68388.0,68383.0,0.014627]
[1771709688846,0.014626,68388.0,68383.0,0.029254]
[1771709689254,0.014626,68388.0,68383.0,0.014627]
[1771709689454,0.014626,68388.0,68383.0,0.029254]
[1771709691451,0.014625,68392.0,68384.0,0.014627]
[1771709691752,0.23064075,68391.0,68386.0,0.014627]
[1771709691943,0.029251,68392.0,68386.0,0.014627]
[1771709692143,0.23063434,68391.0,68386.0,0.014627]
[1771709692358,0.014626,68391.0,68386.0,0.014627]
[1771709694371,0.014626,68390.0,68381.0,0.0007312]
[1771709694569,0.014627,68383.0,68377.0,0.014629]
[1771709694869,0.014628,68382.0,68377.0,0.014629]
[1771709695564,0.014627,68383.0,68377.0,0.029258]
[1771709695869,0.014627,68383.0,68377.0,0.014629]
[1771709696267,0.014629,68377.0,68363.0,0.014632]
[1771709696466,0.014628,68381.0,68374.0,0.014629]
[1771709696771,0.014628,68379.0,68374.0,0.014629]
[1771709696973,0.029256,68379.0,68373.0,0.014629]
[1771709697173,0.014628,68379.0,68373.0,0.014629]
[1771709698765,0.014628,68379.0,68372.0,0.01463]
[1771709698766,0.014629,68376.0,68370.0,0.01463]
[1771709698970,0.014629,68376.0,68369.0,0.01463]
[1771709699365,0.014629,68375.0,68369.0,0.01463]
[1771709699570,0.014629,68375.0,68361.0,0.014632]
[1771709699767,0.029258,68375.0,68369.0,0.01463]
[1771709699972,0.01463,68372.0,68366.0,0.014631]
[1771709700174,0.014628,68379.0,68362.0,0.014632]
[1771709700372,0.014629,68377.0,68372.0,0.01463]
[1771709704172,0.014629,68378.0,68372.0,0.01463]
[1771709704876,0.014628,68379.0,68373.0,0.01463]
[1771709710384,0.4112834,68388.0,68373.0,0.014629]
[1771709710589,0.014625,68396.0,68388.0,0.014626]
[1771709710782,0.014625,68395.0,68389.0,0.014626]
[1771709710982,0.014625,68396.0,68389.0,0.014626]
[1771709711489,0.014625,68394.0,68388.0,0.014626]
[1771709711678,0.014625,68393.0,68384.0,0.014627]
[1771709711885,0.014626,68391.0,68385.0,0.014627]
[1771709712085,0.014626,68389.0,68383.0,0.014627]
[1771709713295,0.014626,68388.0,68383.0,0.014627]
[1771709714393,0.014626,68389.0,68383.0,0.014627]
[1771709714589,0.014626,68390.0,68384.0,0.014627]
[1771709722401,0.014626,68391.0,68383.0,0.014627]
[1771709723601,0.014626,68389.0,68383.0,0.014627]
[1771709724901,0.014626,68390.0,68384.0,0.014627]
[1771709725503,0.014626,68391.0,68385.0,0.014627]
[1771709729210,0.014626,68392.0,68386.0,0.014627]
[1771709732006,0.014625,68394.0,68387.0,0.014627]
[1771709732209,0.014625,68394.0,68388.0,0.014626]
[1771709732398,0.014625,68394.0,68387.0,0.014627]
[1771709732399,0.014625,68393.0,68387.0,0.014627]
[1771709733100,0.014625,68394.0,68388.0,0.014626]
[1771709734103,0.02925,68394.0,68388.0,0.014626]
[1771709734311,0.014625,68393.0,68387.0,0.014626]
[1771709740113,0.21757779,68392.0,68387.0,0.014626]
[1771709740312,0.014625,68393.0,68387.0,0.014626]
[1771709740613,0.2175777,68392.0,68387.0,0.014626]
[1771709740806,0.014625,68393.0,68387.0,0.014626]
[1771709741007,0.21758463,68392.0,68387.0,0.014626]
[1771709741206,0.014625,68393.0,68387.0,0.014626]
[1771709741412,0.21758472,68392.0,68387.0,0.014626]
[1771709741600,0.014625,68393.0,68387.0,0.014626]
[1771709742005,0.02925,68393.0,68387.0,0.014626]
[1771709744516,0.014625,68393.0,68387.0,0.014626]
[1771709746517,0.02925,68393.0,68387.0,0.014626]
[1771709749112,0.014625,68393.0,68387.0,0.014626]
[1771709749308,0.014626,68392.0,68387.0,0.014626]
[1771709751721,0.014625,68395.0,68387.0,0.029252]
[1771709751920,0.014625,68395.0,68376.0,0.014629]
[1771709751921,0.21753375,68394.0,68389.0,0.014626]
[1771709752116,0.21753375,68393.0,68389.0,0.014626]
[1771709752317,0.014625,68395.0,68389.0,0.014626]
[1771709752520,0.217533,68394.0,68389.0,0.014626]
[1771709752717,0.217533,68393.0,68389.0,0.014626]
[1771709753020,0.014625,68395.0,68389.0,0.014626]
[1771709753318,0.217533,68394.0,68389.0,0.014626]
[1771709753521,0.217533,68393.0,68389.0,0.014626]
[1771709753719,0.014625,68395.0,68389.0,0.014626]
[1771709753909,0.21753197,68394.0,68389.0,0.014626]
[1771709754113,0.21753197,68393.0,68389.0,0.014626]
[1771709754314,0.014625,68395.0,68389.0,0.014626]
[1771709754509,0.014626,68392.0,68385.0,0.014627]
[1771709756627,0.014626,68391.0,68384.0,0.014627]
[1771709759945,0.014625,68397.0,68380.0,0.06069104]
[1771709760142,0.014625,68394.0,68387.0,0.029252]
[1771709761141,0.014625,68394.0,68388.0,0.014626]
[1771709762745,0.014624,68397.0,68390.0,0.014626]
[1771709762945,0.38994434,68382.0,68360.0,0.43888142]
[1771709763137,0.014629,68376.0,68370.0,0.01463]
[1771709763338,0.014628,68381.0,68366.0,0.07532204]
[1771709763542,0.014628,68381.0,68374.0,0.014629]
[1771709763745,0.014628,68379.0,68371.0,0.01463]
[1771709763950,0.014629,68375.0,68367.0,0.014631]
[1771709764133,0.014629,68375.0,68365.0,0.014631]
[1771709764442,0.014629,68378.0,68362.0,0.014632]
[1771709764443,0.01463,68370.0,68364.0,0.014631]
[1771709765450,0.01463,68370.0,68364.0,0.015631]
[1771709765946,0.01463,68370.0,68364.0,0.014631]
[1771709766448,0.01463,68371.0,68364.0,0.014631]
[1771709768447,0.01463,68370.0,68364.0,0.014631]
[1771709769044,0.01463,68370.0,68364.0,0.015471]
[1771709769243,0.01463,68370.0,68364.0,0.014631]
[1771709769438,0.01463,68370.0,68340.0,0.09726185]
[1771709769439,0.01463,68370.0,68363.0,0.014632]
[1771709769641,0.01463,68370.0,68350.0,0.06069104]
[1771709769642,0.01463,68370.0,68355.0,0.014633]
[1771709769844,0.01463,68371.0,68364.0,0.014631]
[1771709770743,0.014629,68374.0,68366.0,0.014631]
[1771709770944,0.01463,68372.0,68365.0,0.014631]
[1771709771242,0.01463,68372.0,68363.0,0.014632]
[1771709771442,0.01463,68371.0,68365.0,0.014631]
[1771709771952,0.014631,68369.0,68362.0,0.014632]
[1771709772853,0.4123094,68372.0,68360.0,0.014632]
[1771709773053,0.014631,68369.0,68361.0,0.014632]
[1771709773953,0.01463,68371.0,68364.0,0.014631]
[1771709774956,0.01463,68371.0,68363.0,0.014632]
[1771709775750,0.01463,68371.0,68363.0,0.029264]
[1771709775951,0.01463,68371.0,68364.0,0.014631]
[1771709776251,0.01463,68371.0,68361.0,0.014632]
[1771709776453,0.01463,68371.0,68363.0,0.014632]
[1771709777058,0.014631,68368.0,68359.0,0.014632]
[1771709777358,0.014631,68368.0,68360.0,0.014632]
[1771709777655,0.014631,68368.0,68361.0,0.014632]
[1771709778558,0.01463,68371.0,68362.0,0.014632]
[1771709779155,0.3976794,68373.0,68367.0,0.014631]
[1771709779349,0.014629,68375.0,68367.0,0.014631]
[1771709779857,0.014629,68374.0,68366.0,0.014631]
[1771709780250,0.014629,68374.0,68367.0,0.014631]
[1771709781056,0.014629,68374.0,68368.0,0.015551]
[1771709781258,0.014629,68374.0,68368.0,0.014631]
[1771709781959,0.029259,68374.0,68368.0,0.014631]
[1771709782151,0.014629,68374.0,68368.0,0.014631]
[1771709782958,0.01463,68373.0,68368.0,0.01463]
[1771709785856,0.014629,68375.0,68369.0,0.01463]
[1771709786258,0.014629,68374.0,68369.0,0.01463]
[1771709787156,0.014629,68374.0,68368.0,0.01463]
[1771709787356,0.014629,68376.0,68370.0,0.01463]
[1771709787561,0.014629,68375.0,68370.0,0.01463]
[1771709787756,0.014629,68374.0,68369.0,0.01463]
[1771709788954,0.014629,68376.0,68370.0,0.01463]
[1771709789156,0.23674698,68375.0,68369.0,0.01463]
[1771709789352,0.014629,68375.0,68369.0,0.01463]
[1771709789560,0.029258,68375.0,68369.0,0.01463]
[1771709789961,0.014629,68375.0,68369.0,0.02926]
[1771709790163,0.22854189,68374.0,68370.0,0.01463]
[1771709790362,0.014629,68375.0,68370.0,0.01463]
[1771709790563,0.22854994,68374.0,68370.0,0.01463]
[1771709790763,0.014629,68375.0,68370.0,0.01463]
[1771709791066,0.01463,68371.0,68365.0,0.014631]
[1771709791269,0.01463,68372.0,68366.0,0.014631]
[1771709791467,0.02926,68372.0,68366.0,0.014631]
[1771709791863,0.01463,68372.0,68366.0,0.014631]
[1771709792168,0.01463,68372.0,68367.0,0.014631]
[1771709792557,0.01463,68371.0,68366.0,0.014631]
[1771709793270,0.01463,68371.0,68361.0,0.014632]
[1771709793470,0.01463,68371.0,68365.0,0.014631]
[1771709794072,0.02926,68371.0,68363.0,0.014632]
[1771709794274,0.01463,68371.0,68365.0,0.014631]
[1771709794474,0.01463,68371.0,68365.0,0.029262]
[1771709794665,0.01463,68371.0,68365.0,0.014631]
[1771709795071,0.01463,68371.0,68363.0,0.014631]
[1771709795276,0.01463,68371.0,68364.0,0.014631]
[1771709795573,0.01463,68371.0,68365.0,0.014631]
[1771709796176,0.014629,68375.0,68368.0,0.01463]
[1771709796374,0.22897223,68374.0,68368.0,0.01463]
[1771709796573,0.01463,68371.0,68360.0,0.014632]
[1771709796765,0.01463,68371.0,68364.0,0.014631]
[1771709797675,0.01463,68371.0,68352.0,0.014634]
[1771709797676,0.014631,68368.0,68352.0,0.014634]
[1771709797872,0.014631,68368.0,68362.0,0.014632]
[1771709798071,0.014631,68368.0,68353.0,0.014634]
[1771709798268,0.014631,68368.0,68361.0,0.014632]
[1771709798972,0.014631,68366.0,68359.0,0.014633]
[1771709799980,0.014631,68365.0,68359.0,0.014633]
[1771709800178,0.47300044,68371.0,68348.0,0.0001843]
[1771709800179,0.014632,68360.0,68348.0,0.0001843]
[1771709800482,0.014632,68364.0,68357.0,0.014633]
[1771709800880,0.36470151,68366.0,68360.0,0.014632]
[1771709801085,0.01463,68369.0,68357.0,0.014633]
[1771709801374,0.01463,68369.0,68352.0,0.014634]
[1771709801375,0.014631,68367.0,68360.0,0.014632]
[1771709801580,0.014631,68368.0,68361.0,0.014632]
[1771709801780,0.22903299,68367.0,68361.0,0.014632]
[1771709801975,0.014631,68368.0,68361.0,0.014632]
[1771709802178,0.24366367,68367.0,68360.0,0.014632]
[1771709802378,0.014631,68367.0,68360.0,0.014632]
[1771709803084,0.014631,68368.0,68360.0,0.014632]
[1771709803285,0.24361889,68367.0,68360.0,0.014632]
[1771709803474,0.014631,68367.0,68360.0,0.014632]
[1771709807390,0.014628,68379.0,68357.0,0.3835406]
[1771709807585,0.014627,68387.0,68357.0,0.3835406]
[1771709807586,0.014629,68376.0,68368.0,0.01463]
[1771709807885,0.014629,68376.0,68369.0,0.01463]
[1771709808281,0.014629,68377.0,68370.0,0.01463]
[1771709808587,0.22752535,68376.0,68370.0,0.01463]
[1771709808787,0.029258,68377.0,68370.0,0.01463]
[1771709809086,0.2421549,68376.0,68370.0,0.01463]
[1771709809286,0.014629,68376.0,68370.0,0.01463]
[1771709809683,0.014629,68377.0,68370.0,0.02926]
[1771709809885,0.22751401,68376.0,68370.0,0.01463]
[1771709810088,0.014629,68375.0,68369.0,0.01463]
[1771709811989,0.01298098,68375.0,68370.0,0.01463]
[1771709812290,0.014629,68377.0,68371.0,0.01463]
[1771709812591,0.22748499,68376.0,68371.0,0.01463]
[1771709812889,0.014629,68377.0,68371.0,0.01463]
[1771709813191,0.22748499,68376.0,68371.0,0.01463]
[1771709813489,0.014629,68377.0,68371.0,0.01463]
[1771709813690,0.22747659,68376.0,68371.0,0.01463]
[1771709813894,0.014629,68377.0,68371.0,0.01463]
[1771709814192,0.22747659,68376.0,68371.0,0.01463]
[1771709814394,0.014629,68377.0,68371.0,0.01463]
[1771709814693,0.22618028,68376.0,68370.0,0.01463]
[1771709814991,0.014629,68377.0,68371.0,0.01463]
[1771709815588,0.014629,68378.0,68372.0,0.01463]
[1771709815983,0.014629,68377.0,68372.0,0.01463]
[1771709829900,0.36470151,68384.0,68360.0,0.31416863]
[1771709830097,1.14322836,68406.0,68360.0,0.31416863]
[1771709830098,0.014628,68382.0,68377.0,0.014628]
[1771709830296,0.1767613,68381.0,68376.0,0.014629]
[1771709830498,0.014628,68382.0,68376.0,0.014629]
[1771709830803,0.014628,68381.0,68376.0,0.014629]
[1771709832498,0.014627,68383.0,68377.0,0.014629]
[1771709832695,0.014628,68382.0,68376.0,0.014629]
[1771709833096,0.014628,68381.0,68376.0,0.014629]
[1771709835098,0.014627,68383.0,68376.0,0.014629]
[1771709835291,0.014627,68384.0,68376.0,0.014629]
[1771709835892,0.014627,68385.0,68379.0,0.014628]
[1771709836414,0.014627,68386.0,68380.0,0.014628]
[1771709836602,0.36097422,68391.0,68380.0,0.014628]
[1771709836603,0.014626,68391.0,68385.0,0.014627]
[1771709837100,0.014626,68391.0,68386.0,0.014627]
[1771709838107,0.014626,68392.0,68386.0,0.014627]
[1771709839202,0.014626,68392.0,68387.0,0.014627]
[1771709839402,0.014626,68392.0,68385.0,0.014627]
[1771709839703,0.014626,68391.0,68386.0,0.014627]
[1771709839909,0.014626,68392.0,68386.0,0.014627]
[1771709840205,0.014625,68394.0,68386.0,0.014627]
[1771709840409,0.014625,68393.0,68387.0,0.014627]
[1771709840612,0.014625,68394.0,68388.0,0.014626]
[1771709840903,0.014625,68394.0,68387.0,0.014627]
[1771709841511,0.014625,68394.0,68388.0,0.014626]
[1771709841910,0.014625,68394.0,68387.0,0.014627]
[1771709842103,0.014625,68394.0,68388.0,0.014626]
[1771709842910,0.014625,68394.0,68389.0,0.014626]
[1771709843110,0.014625,68394.0,68388.0,0.014626]
[1771709844314,0.014625,68395.0,68390.0,0.014626]
[1771709844502,0.014625,68395.0,68388.0,0.029252]
[1771709845414,0.014625,68394.0,68388.0,0.014626]
[1771709845910,0.014625,68394.0,68388.0,0.029252]
[1771709846110,0.014625,68394.0,68388.0,0.014626]
[1771709846314,0.014625,68394.0,68389.0,0.014626]
[1771709847319,0.014625,68394.0,68388.0,0.014626]
[1771709848512,0.014625,68393.0,68387.0,0.014627]
[1771709851828,0.014626,68392.0,68386.0,0.014627]
[1771709858034,0.014628,68383.0,68374.0,0.014629]
[1771709858231,0.014628,68383.0,68376.0,0.014629]
[1771709859636,0.014628,68383.0,68377.0,0.014629]
[1771709862738,0.014623,68404.0,68393.0,0.014625]
[1771709863039,0.014623,68404.0,68392.0,0.014625]
[1771709863040,0.014624,68398.0,68392.0,0.014625]
[1771709863642,0.014624,68399.0,68392.0,0.014625]
[1771709863846,0.22089672,68398.0,68392.0,0.014625]
[1771709864042,0.014624,68399.0,68392.0,0.014625]
[1771709864451,0.22094374,68398.0,68392.0,0.014625]
[1771709864749,0.014624,68399.0,68393.0,0.014625]
[1771709864939,0.2209433,68398.0,68393.0,0.014625]
[1771709865141,0.014624,68399.0,68393.0,0.014625]
[1771709865338,0.2209433,68398.0,68393.0,0.014625]
[1771709865537,0.014624,68399.0,68393.0,0.014625]
[1771709865732,0.22100057,68398.0,68393.0,0.014625]
[1771709866038,0.014624,68399.0,68393.0,0.014625]
[1771709866244,0.22098739,68398.0,68393.0,0.014625]
[1771709866438,0.22098739,68397.0,68393.0,0.014625]
[1771709866639,0.014624,68399.0,68393.0,0.014625]
[1771709866840,0.2210364,68398.0,68393.0,0.014625]
[1771709867042,0.2210364,68397.0,68393.0,0.014625]
[1771709867240,0.014624,68399.0,68393.0,0.014625]
[1771709867441,0.22103146,68398.0,68393.0,0.014625]
[1771709867643,0.22103146,68397.0,68393.0,0.014625]
[1771709867946,0.014624,68399.0,68393.0,0.014625]
[1771709868150,0.22103099,68398.0,68393.0,0.014625]
[1771709868448,0.22103099,68397.0,68393.0,0.014625]
[1771709868652,0.014624,68399.0,68393.0,0.014625]
[1771709868946,0.22102806,68398.0,68393.0,0.014625]
[1771709869142,0.22102806,68397.0,68393.0,0.014625]
[1771709869339,0.014624,68399.0,68393.0,0.014625]
[1771709869543,0.22102587,68398.0,68393.0,0.014625]
[1771709869744,0.014624,68399.0,68393.0,0.014625]
[1771709869944,0.22102589,68398.0,68393.0,0.014625]
[1771709870145,0.014624,68399.0,68393.0,0.014625]
[1771709870337,0.22102637,68398.0,68393.0,0.014625]
[1771709870543,0.014624,68400.0,68394.0,0.014625]
[1771709870746,0.22102526,68399.0,68394.0,0.014625]
[1771709870949,0.22102526,68398.0,68394.0,0.014625]
[1771709871145,0.014624,68401.0,68394.0,0.014625]
[1771709871146,0.014624,68399.0,68394.0,0.014625]
[1771709871351,0.3623166,68405.0,68391.0,0.014626]
[1771709871352,0.2356495,68398.0,68391.0,0.014626]
[1771709871543,0.014625,68397.0,68391.0,0.014626]
[1771709871744,0.22102105,68396.0,68391.0,0.014626]
[1771709871949,0.22102105,68395.0,68391.0,0.014626]
[1771709872151,0.014625,68397.0,68391.0,0.014626]
[1771709872352,0.2210209,68396.0,68391.0,0.014626]
[1771709872550,0.014625,68397.0,68391.0,0.014626]
[1771709872551,0.2210209,68395.0,68391.0,0.014626]
[1771709872740,0.014625,68397.0,68391.0,0.014626]
[1771709872947,0.22101553,68396.0,68391.0,0.014626]
[1771709873145,0.22101553,68395.0,68391.0,0.014626]
[1771709873347,0.014625,68397.0,68391.0,0.014626]
[1771709873546,0.22101102,68396.0,68391.0,0.014626]
[1771709873847,0.22101102,68395.0,68391.0,0.014626]
[1771709874051,0.014625,68396.0,68391.0,0.014626]
[1771709874253,0.2210106,68395.0,68391.0,0.014626]
[1771709874552,0.014625,68396.0,68389.0,0.014626]
[1771709874752,0.22100737,68395.0,68389.0,0.014626]
[1771709874950,0.014625,68396.0,68389.0,0.014626]
[1771709875154,0.22100619,68395.0,68389.0,0.014626]
[1771709875453,0.014625,68396.0,68389.0,0.014626]
[1771709875655,0.22100271,68395.0,68390.0,0.014626]
[1771709875843,0.014625,68396.0,68390.0,0.014626]
[1771709876041,0.22100224,68395.0,68390.0,0.014626]
[1771709876244,0.014625,68396.0,68390.0,0.014626]
[1771709876457,0.22099898,68395.0,68390.0,0.014626]
[1771709876658,0.014625,68396.0,68390.0,0.014626]
[1771709876852,0.22099898,68395.0,68390.0,0.014626]
[1771709877055,0.014625,68396.0,68390.0,0.014626]
[1771709877254,0.22099898,68395.0,68390.0,0.014626]
[1771709877558,0.014625,68396.0,68390.0,0.014626]
[1771709877758,0.22099591,68395.0,68390.0,0.014626]
[1771709877958,0.014625,68396.0,68390.0,0.014626]
[1771709878158,0.22099544,68395.0,68390.0,0.014626]
[1771709878360,0.014625,68396.0,68390.0,0.014626]
[1771709878559,0.22099254,68395.0,68390.0,0.014626]
[1771709878758,0.014625,68396.0,68390.0,0.014626]
[1771709878958,0.22099254,68395.0,68390.0,0.014626]
[1771709879160,0.014625,68396.0,68389.0,0.014626]
[1771709879361,0.22099254,68395.0,68389.0,0.014626]
[1771709879557,0.02925,68396.0,68389.0,0.014626]
[1771709879753,0.22098982,68395.0,68389.0,0.014626]
[1771709879953,0.014625,68395.0,68389.0,0.014626]
[1771709880462,0.43763658,68400.0,68385.0,0.014627]
[1771709880658,0.014626,68389.0,68382.0,0.014627]
[1771709880955,0.014626,68388.0,68382.0,0.014628]
[1771709881164,0.014626,68388.0,68381.0,0.014628]
[1771709881761,0.014626,68388.0,68382.0,0.014628]
[1771709882163,0.014626,68389.0,68382.0,0.014628]
[1771709883061,0.014626,68389.0,68383.0,0.015507]
[1771709883362,0.014626,68389.0,68383.0,0.014627]
[1771709890866,0.029252,68389.0,68382.0,0.014628]
[1771709891165,0.014626,68388.0,68382.0,0.014628]
[1771709891364,0.014626,68388.0,68380.0,0.014628]
[1771709891365,0.014627,68387.0,68381.0,0.014628]
[1771709891966,0.014626,68388.0,68382.0,0.014628]
[1771709892260,0.014626,68389.0,68382.0,0.029256]
[1771709893066,0.014626,68389.0,68383.0,0.014627]
[1771709894769,0.014626,68390.0,68383.0,0.014627]
[1771709895570,0.014626,68389.0,68382.0,0.014628]
[1771709895969,0.014626,68389.0,68383.0,0.014627]
[1771709896268,0.014626,68390.0,68383.0,0.014627]
[1771709896457,0.014626,68390.0,68384.0,0.014627]
[1771709904280,0.029252,68392.0,68384.0,0.014627]
[1771709906478,0.014626,68392.0,68385.0,0.014627]
[1771709906679,0.07531998,68400.0,68379.0,0.014628]
[1771709906883,0.014625,68396.0,68389.0,0.014626]
[1771709907071,0.001,68392.0,68390.0,0.00084]
[1771709907273,0.001,68392.0,68389.0,0.014626]
[1771709907688,0.014625,68396.0,68389.0,0.014626]
[1771709907880,0.2203428,68395.0,68389.0,0.014626]
[1771709908077,0.2203428,68394.0,68389.0,0.014626]
[1771709908377,0.2203428,68393.0,68389.0,0.014626]
[1771709908574,0.014625,68396.0,68389.0,0.014626]
[1771709908775,0.2203549,68395.0,68389.0,0.014626]
[1771709908976,0.2203549,68394.0,68385.0,0.014627]
[1771709909284,0.2203549,68393.0,68388.0,0.014626]
[1771709909484,0.014625,68395.0,68388.0,0.014626]
[1771709909784,0.22037214,68394.0,68389.0,0.014626]
[1771709909987,0.22037214,68393.0,68387.0,0.014627]
[1771709910283,0.014625,68395.0,68387.0,0.014627]
[1771709910582,0.22120808,68394.0,68389.0,0.014626]
[1771709910782,0.22120808,68393.0,68389.0,0.014626]
[1771709910982,0.014625,68395.0,68389.0,0.014626]
[1771709911284,0.22120832,68394.0,68385.0,0.014627]
[1771709911581,0.22120832,68393.0,68389.0,0.014626]
[1771709911789,0.014625,68395.0,68389.0,0.014626]
[1771709911970,0.2212092,68394.0,68389.0,0.014626]
[1771709912174,0.2212092,68393.0,68389.0,0.014626]
[1771709912381,0.014625,68395.0,68389.0,0.014626]
[1771709912580,0.22121016,68394.0,68389.0,0.014626]
[1771709912783,0.22121016,68393.0,68385.0,0.014627]
[1771709913082,0.014625,68395.0,68385.0,0.014627]
[1771709913280,0.22121016,68394.0,68385.0,0.014627]
[1771709913485,0.014625,68395.0,68385.0,0.014627]
[1771709913486,0.22121016,68393.0,68385.0,0.014627]
[1771709913674,0.014625,68395.0,68389.0,0.014626]
[1771709913869,0.22121137,68394.0,68389.0,0.014626]
[1771709914075,0.22121137,68393.0,68385.0,0.014627]
[1771709914277,0.014625,68395.0,68388.0,0.014626]
[1771709914484,0.22121234,68394.0,68388.0,0.014626]
[1771709914687,0.22121234,68393.0,68385.0,0.014627]
[1771709914878,0.014625,68395.0,68388.0,0.014626]
[1771709915078,0.22121234,68394.0,68388.0,0.014626]
[1771709915375,0.22121234,68393.0,68389.0,0.014626]
[1771709915573,0.014625,68395.0,68389.0,0.014626]
[1771709915779,0.22121414,68394.0,68389.0,0.014626]
[1771709915982,0.22121414,68393.0,68380.0,0.014628]
[1771709916182,0.014625,68395.0,68380.0,0.014628]
[1771709916382,0.22121414,68394.0,68380.0,0.014628]
[1771709916583,0.22121414,68393.0,68380.0,0.014628]
[1771709916780,0.014625,68395.0,68388.0,0.014626]
[1771709916986,0.22121553,68394.0,68388.0,0.029252]
[1771709917284,0.22121553,68393.0,68388.0,0.029252]
[1771709917484,0.22121553,68392.0,68388.0,0.006826]
[1771709917684,0.014625,68395.0,68388.0,0.021452]
[1771709917879,0.22160145,68394.0,68388.0,0.021452]
[1771709918079,0.22160145,68393.0,68388.0,0.021452]
[1771709918285,0.014625,68395.0,68388.0,0.021452]
[1771709918286,0.22160145,68392.0,68388.0,0.021452]
[1771709918585,0.014625,68395.0,68388.0,0.021452]
[1771709918786,0.22170305,68394.0,68388.0,0.021452]
[1771709918975,0.22170305,68393.0,68388.0,0.006826]
[1771709919174,0.22170305,68392.0,68388.0,0.006826]
[1771709919378,0.02925,68395.0,68388.0,0.006826]
[1771709919585,0.22169986,68394.0,68388.0,0.006826]
[1771709919786,0.22169986,68393.0,68388.0,0.006826]
[1771709919988,0.22169986,68392.0,68388.0,0.006826]
[1771709920187,0.014625,68394.0,68388.0,0.006826]
[1771709920485,0.22169582,68393.0,68388.0,0.006826]
[1771709920689,0.35335949,68391.0,68364.0,0.30576985]
[1771709920885,0.014627,68385.0,68378.0,0.014628]
[1771709921081,0.23632282,68384.0,68376.0,0.014629]
[1771709921281,0.014627,68384.0,68377.0,0.014629]
[1771709922181,0.22529431,68383.0,68377.0,0.014629]
[1771709922383,0.014627,68384.0,68377.0,0.014629]
[1771709928297,0.029254,68384.0,68377.0,0.014629]
[1771709930997,0.014627,68383.0,68377.0,0.014629]
[1771709933097,0.014624,68398.0,68375.0,0.014629]
[1771709933299,0.014626,68391.0,68384.0,0.014627]